bitfinex/quotes_SOLUSD_20250321
["timestamp","ask_amount","ask_price","bid_price","bid_amount"]
[1742580792790,13.92589288,126.47,126.43,20.68589288]
[1742580792994,13.92589288,126.46,126.43,6.76]
[1742580794592,21.83339288,126.47,126.43,6.76]
[1742580796402,13.92589288,126.45,126.43,6.76]
[1742580797096,13.92589288,126.44,126.4,0.03]
[1742580797295,13.92589288,126.43,126.4,0.03]
[1742580797888,13.92589288,126.41,126.4,0.03]
[1742580798586,21.83659288,126.41,126.4,0.03]
[1742580804910,22.12091602,126.41,126.4,0.03]
[1742580805095,23.75991602,126.41,126.4,0.03]
[1742580806508,0.28432314,126.4,126.34,0.03]
[1742580806814,13.92589288,126.36,126.34,0.03]
[1742580808496,13.92589288,126.35,126.34,0.03]
[1742580810699,22.12471602,126.35,126.34,0.03]
[1742580810914,28.32341602,126.35,126.34,0.03]
[1742580812625,48.83989858,126.35,126.34,0.03]
[1742580812818,20.0,126.32,126.3,0.03]
[1742580813010,13.92589288,126.31,126.3,0.03]
[1742580813520,14.21021602,126.31,126.3,0.03]
[1742580814500,22.12721602,126.31,126.3,0.03]
[1742580819502,23.70972658,126.31,126.3,0.03]
[1742580819707,80.9510981,126.31,126.3,0.03]
[1742580820026,79.36858754,126.31,126.3,0.03]
[1742580821225,98.30255954,126.31,126.3,0.03]
[1742580826414,42.59898802,126.31,126.3,0.03]
[1742580827333,98.30255954,126.31,126.3,0.03]
[1742580830121,0.28432314,126.3,126.27,0.03]
[1742580830316,13.92589288,126.28,126.27,0.03]
[1742580832821,33.14418802,126.28,126.27,0.03]
[1742580833020,42.64559858,126.28,126.23,0.03]
[1742580833218,13.92589288,126.24,126.23,0.03]
[1742580835736,84.59518754,126.24,126.23,0.03]
[1742580835927,20.68589288,126.24,126.18,18.33432678]
[1742580836233,13.92589288,126.23,126.19,13.92589288]
[1742580836638,13.92589288,126.23,126.18,25.11432678]
[1742580837026,13.92589288,126.23,126.19,7.9245]
[1742580838539,13.92589288,126.22,126.19,7.9245]
[1742580839041,13.92589288,126.23,126.19,7.9245]
[1742580840535,13.92589288,126.22,126.19,7.9245]
[1742580842541,13.92589288,126.22,126.19,7.9545]
[1742580843230,8.20612314,126.24,126.19,0.03]
[1742580843231,13.92589288,126.21,126.19,0.03]
[1742580844823,13.92589288,126.2,126.19,0.03]
[1742580845138,55.98789466,126.24,126.19,0.03]
[1742580845347,13.92589288,126.22,126.19,0.03]
[1742580845520,13.92589288,126.21,126.19,0.03]
[1742580846446,13.92589288,126.2,126.19,0.03]
[1742580846942,13.92589288,126.21,126.19,0.03]
[1742580849749,13.92589288,126.22,126.19,0.03]
[1742580850827,13.92589288,126.24,126.19,13.95589288]
[1742580851028,13.92589288,126.24,126.2,13.92589288]
[1742580851853,13.92589288,126.24,126.21,7.9233]
[1742580852150,13.92589288,126.25,126.21,7.9233]
[1742580852853,13.92589288,126.24,126.21,7.9233]
[1742580853733,13.98889288,126.24,126.21,7.9233]
[1742580856150,0.063,126.24,126.21,21.84919288]
[1742580856455,0.063,126.24,126.21,28.62919288]
[1742580856636,0.063,126.24,126.21,48.43739288]
[1742580857255,0.063,126.24,126.22,13.92589288]
[1742580857432,0.063,126.24,126.21,34.5115]
[1742580857638,0.063,126.24,126.21,48.43739288]
[1742580861059,0.063,126.24,126.22,13.92589288]
[1742580861740,0.063,126.24,126.21,48.43739288]
[1742580862463,0.063,126.24,126.21,34.5115]
[1742580864660,0.063,126.24,126.21,48.43739288]
[1742580869449,0.063,126.24,126.23,13.92589288]
[1742580870150,0.063,126.24,126.23,15.57059288]
[1742580870356,0.063,126.24,126.23,23.49259288]
[1742580873274,0.063,126.24,126.23,21.84789288]
[1742580873774,0.063,126.24,126.23,7.922]
[1742580875181,0.063,126.24,126.23,21.84789288]
[1742580879883,0.063,126.24,126.23,40.78186488]
[1742580883893,13.92589288,126.3,126.24,18.933972]
[1742580884185,9.538,126.32,126.24,18.933972]
[1742580884186,13.92589288,126.31,126.27,13.92589288]
[1742580884997,13.92589288,126.31,126.26,32.85986488]
[1742580885482,13.92589288,126.3,126.26,32.85986488]
[1742580885666,13.92589288,126.3,126.27,7.9195]
[1742580885869,13.92589288,126.31,126.27,7.9195]
[1742580887265,13.92589288,126.3,126.27,7.9195]
[1742580887659,13.92589288,126.31,126.27,7.9195]
[1742580890267,13.92589288,126.31,126.27,21.84539288]
[1742580890766,13.98889288,126.31,126.27,21.84539288]
[1742580891574,0.063,126.31,126.3,13.92589288]
[1742580891888,0.063,126.31,126.3,20.68589288]
[1742580892193,0.063,126.31,126.3,28.60349288]
[1742580892486,0.063,126.31,126.3,47.53746488]
[1742580892962,0.063,126.31,126.3,14.6776]
[1742580894067,0.063,126.31,126.3,47.53746488]
[1742580895193,0.063,126.31,126.3,103.2410364]
[1742580895489,0.063,126.33,126.32,32.85986488]
[1742580896293,0.063,126.33,126.32,44.69740481]
[1742580896504,0.063,126.33,126.32,40.77626488]
[1742580898874,0.063,126.33,126.32,44.65120989]
[1742580902196,0.063,126.33,126.32,46.51806344]
[1742580902373,0.063,126.33,126.32,54.70976344]
[1742580903189,0.0001,126.33,126.32,54.70976344]
[1742580903382,0.063,126.35,126.34,0.28432314]
[1742580903583,0.0001,126.35,126.34,41.48636173]
[1742580904198,0.0001,126.35,126.34,39.61986488]
[1742580905499,0.0001,126.35,126.34,47.53496488]
[1742580911192,0.0001,126.35,126.34,47.39280331]
[1742580911396,0.0001,126.35,126.34,6.76]
[1742580914940,0.0001,126.35,126.34,20.68589288]
[1742580916102,0.0001,126.35,126.34,28.60099288]
[1742580924631,0.0001,126.35,126.34,47.53496488]
[1742580925221,0.0001,126.35,126.34,47.81928802]
[1742580937625,0.0001,126.35,126.34,48.31928802]
[1742580938949,0.0001,126.35,126.34,48.34928802]
[1742580940527,0.0001,126.37,126.36,0.56864628]
[1742580940727,0.0001,126.37,126.36,88.84775954]
[1742580941428,0.0001,126.37,126.36,89.34775954]
[1742580942436,0.0001,126.37,126.36,88.84775954]
[1742580942647,0.0001,126.37,126.36,97.26155954]
[1742580943155,6.6868,126.44,126.38,0.28432314]
[1742580943443,6.6868,126.44,126.41,13.92589288]
[1742580944855,6.6868,126.44,126.41,21.83629288]
[1742580945033,20.61269288,126.44,126.41,7.9104]
[1742580945240,28.52159288,126.44,126.4,21.83689288]
[1742580945434,13.92589288,126.43,126.4,7.911]
[1742580946457,13.92589288,126.43,126.39,28.59749288]
[1742580947258,20.61269288,126.44,126.39,28.59749288]
[1742580947546,28.52159288,126.44,126.4,13.92589288]
[1742580948333,15.57379288,126.42,126.38,14.6725]
[1742580948541,13.92589288,126.41,126.38,14.6725]
[1742580948940,15.57379288,126.42,126.38,14.6725]
[1742580950135,15.57379288,126.42,126.39,13.92589288]
[1742580950136,1.6479,126.42,126.39,13.92589288]
[1742580950531,1.6479,126.42,126.4,13.92589288]
[1742580950847,1.6479,126.42,126.4,7.9113]
[1742580955750,14.5957,126.44,126.4,7.9113]
[1742580955751,28.52159288,126.44,126.4,7.9113]
[1742580955959,20.61269288,126.44,126.4,7.9113]
[1742580956132,28.52159288,126.44,126.4,7.9113]
[1742580959861,20.61269288,126.44,126.4,7.9113]
[1742580960263,20.61269288,126.44,126.4,21.83719288]
[1742580962162,20.61269288,126.44,126.4,41.61559288]
[1742580962737,20.61269288,126.44,126.4,21.83719288]
[1742580963965,20.61269288,126.44,126.4,7.9113]
[1742580968365,13.98889288,126.44,126.4,13.92589288]
[1742580969943,0.063,126.44,126.4,13.92589288]
[1742580970361,13.98889288,126.44,126.41,7.9107]
[1742580970759,13.92589288,126.43,126.4,7.9111]
[1742580970963,13.92589288,126.43,126.39,7.9119]
[1742580973062,13.92589288,126.43,126.38,47.24774174]
[1742580973063,21.83539288,126.43,126.38,47.24774174]
[1742580973264,13.92589288,126.41,126.38,14.6722]
[1742580973664,13.92589288,126.42,126.38,14.6722]
[1742580973863,13.92589288,126.42,126.38,28.59809288]
[1742580975454,13.92589288,126.43,126.38,28.59809288]
[1742580975771,5.92543021,126.41,126.39,13.92589288]
[1742580976465,5.92543021,126.41,126.4,7.9113]
[1742580976677,21.89789288,126.44,126.4,7.9113]
[1742580976880,13.92589288,126.43,126.4,7.9113]
[1742580978569,13.92589288,126.43,126.39,7.9116]
[1742580979883,13.92589288,126.43,126.39,21.83749288]
[1742580980389,21.83549288,126.43,126.39,7.9116]
[1742580981090,13.92589288,126.42,126.39,7.9116]
[1742580984711,0.063,126.44,126.39,21.83749288]
[1742580985012,0.063,126.44,126.4,13.92589288]
[1742580985903,0.063,126.44,126.41,7.9107]
[1742580986101,13.98889288,126.44,126.41,7.9107]
[1742580996624,13.92589288,126.43,126.4,7.9113]
[1742580997124,13.98889288,126.44,126.4,7.9113]
[1742581001308,0.063,126.44,126.4,21.83719288]
[1742581002233,0.063,126.44,126.4,7.9113]
[1742581002234,13.98889288,126.44,126.4,7.9113]
[1742581003340,13.92589288,126.41,126.37,0.03]
[1742581003625,13.92589288,126.38,126.37,0.03]
[1742581005330,21.83849288,126.38,126.37,0.03]
[1742581005637,37.24873853,126.38,126.37,0.03]
[1742581007341,27.76551044,126.38,126.37,0.03]
[1742581012132,28.04983358,126.38,126.37,0.03]
[1742581014444,0.28432314,126.37,126.34,0.03]
[1742581014622,14.21021602,126.35,126.34,0.03]
[1742581015452,22.12471602,126.35,126.34,0.03]
[1742581015746,28.05173358,126.35,126.34,0.03]
[1742581016152,19.85291044,126.35,126.34,0.03]
[1742581016335,5.92701756,126.35,126.34,0.03]
[1742581016851,19.85291044,126.35,126.34,0.03]
[1742581017343,5.92701756,126.35,126.34,0.03]
[1742581019146,13.92589288,126.37,126.34,0.03]
[1742581019732,13.92589288,126.36,126.34,0.03]
[1742581020231,13.92589288,126.35,126.34,0.03]
[1742581022327,19.81225988,126.35,126.34,0.03]
[1742581023655,27.72675988,126.35,126.34,0.03]
[1742581024052,19.81225988,126.35,126.34,0.03]
[1742581024470,5.886367,126.35,126.34,0.03]
[1742581024830,5.886367,126.35,126.34,13.95589288]
[1742581025031,5.886367,126.35,126.34,32.88986488]
[1742581025235,0.063,126.38,126.35,1.5854]
[1742581025432,0.063,126.38,126.37,13.92589288]
[1742581026133,0.063,126.38,126.37,20.68589288]
[1742581026334,0.063,126.38,126.37,28.59909288]
[1742581026754,13.98889288,126.44,126.38,0.28432314]
[1742581026930,13.98889288,126.44,126.39,13.92589288]
[1742581028433,13.98889288,126.44,126.4,7.9113]
[1742581028753,13.98889288,126.44,126.4,21.83719288]
[1742581029140,0.063,126.44,126.42,13.92589288]
[1742581029539,0.063,126.44,126.41,22.21299288]
[1742581029857,13.92589288,126.43,126.41,6.76]
[1742581030037,13.98889288,126.44,126.41,6.76]
[1742581030438,13.98889288,126.44,126.42,7.9101]
[1742581030650,13.98889288,126.44,126.41,14.6704]
[1742581032762,0.063,126.44,126.41,14.6704]
[1742581032949,0.063,126.44,126.41,28.59629288]
[1742581037570,12.98889288,126.45,126.41,28.59629288]
[1742581038446,12.98889288,126.45,126.41,14.6704]
[1742581038653,13.92589288,126.44,126.41,14.6704]
[1742581039565,13.92589288,126.45,126.41,28.59629288]
[1742581040157,13.98889288,126.46,126.42,13.92589288]
[1742581040469,0.063,126.46,126.42,13.92589288]
[1742581040647,0.063,126.46,126.43,13.92589288]
[1742581041474,0.05127854,126.47,126.44,7.9088]
[1742581042248,13.97717142,126.47,126.43,21.83509288]
[1742581046050,21.88427142,126.47,126.43,7.9092]
[1742581047468,13.97717142,126.47,126.43,21.83509288]
[1742581048475,13.97717142,126.47,126.43,23.37689288]
[1742581048676,0.05127854,126.47,126.44,13.92589288]
[1742581049171,0.05127854,126.47,126.45,6.76]
[1742581049349,0.05127854,126.47,126.45,14.6682]
[1742581053784,0.05127854,126.47,126.46,13.92589288]
[1742581054286,0.05127854,126.47,126.46,40.76746488]
[1742581055273,0.05127854,126.47,126.46,49.20978802]
[1742581055274,7.854e-05,126.47,126.46,49.20978802]
[1742581056792,0.063,126.5,126.47,19.21829514]
[1742581056981,0.063,126.5,126.49,33.14418802]
[1742581057276,0.063,126.5,126.49,39.90418802]
[1742581057822,0.063,126.5,126.49,250.51528802]
[1742581057984,0.063,126.51,126.5,33.14418802]
[1742581058302,0.063,126.51,126.5,34.72417433]
[1742581058508,0.063,126.52,126.51,19.21829514]
[1742581058680,0.063,126.52,126.51,33.14418802]
[1742581058870,0.063,126.55,126.53,0.28432314]
[1742581059191,0.063,126.55,126.54,25.693972]
[1742581059382,0.063,126.55,126.54,39.61986488]
[1742581060079,0.063,126.55,126.54,25.693972]
[1742581060684,0.063,126.55,126.54,6.76]
[1742581061196,0.063,126.55,126.51,39.31554174]
[1742581061695,0.063,126.55,126.52,13.92589288]
[1742581062597,0.063,126.55,126.51,39.31554174]
[1742581063900,7.965,126.55,126.51,39.31554174]
[1742581064973,0.063,126.55,126.51,47.21994174]
[1742581065175,0.063,126.55,126.52,13.92589288]
[1742581066587,0.063,126.55,126.52,21.82969288]
[1742581068698,0.063,126.55,126.53,32.85986488]
[1742581069014,0.063,126.55,126.54,13.92589288]
[1742581070295,0.063,126.55,126.54,21.82849288]
[1742581070890,0.063,126.55,126.54,40.76246488]
[1742581072107,0.063,126.55,126.54,42.65178802]
[1742581072405,0.063,126.55,126.54,42.36746488]
[1742581074611,0.063,126.55,126.54,40.76246488]
[1742581075888,0.063,126.55,126.54,7.9026]
[1742581076093,0.063,126.55,126.53,25.673972]
[1742581076413,13.92589288,126.57,126.53,25.673972]
[1742581076600,13.92589288,126.57,126.53,39.59986488]
[1742581077317,13.92589288,126.57,126.53,25.673972]
[1742581077491,13.92589288,126.58,126.53,39.59986488]
[1742581077691,13.92589288,126.58,126.54,13.92589288]
[1742581078413,13.92589288,126.57,126.53,47.50276488]
[1742581080411,13.92589288,126.55,126.51,1.74716157]
[1742581080715,13.92589288,126.55,126.52,6.74]
[1742581081713,13.92589288,126.56,126.53,7.9032]
[1742581082915,13.95589288,126.58,126.53,21.82909288]
[1742581083120,81.9,126.57,126.53,21.82909288]
[1742581085527,81.9,126.57,126.54,13.92589288]
[1742581086335,95.82589288,126.57,126.53,41.58719288]
[1742581086628,95.82589288,126.57,126.53,7.9032]
[1742581086835,13.92589288,126.56,126.53,7.9032]
[1742581087039,13.92589288,126.56,126.53,14.6432]
[1742581087332,95.82589288,126.57,126.53,14.6432]
[1742581088631,81.9,126.56,126.53,14.6432]
[1742581089436,95.82589288,126.56,126.53,6.74]
[1742581091033,81.9,126.56,126.53,14.6431]
[1742581091536,95.82589288,126.56,126.53,14.6431]
[1742581092940,95.82589288,126.56,126.53,28.63199288]
[1742581092941,81.9,126.56,126.53,28.63199288]
[1742581093138,81.9,126.56,126.54,13.92589288]
[1742581093641,81.9,126.56,126.55,7.902]
[1742581094530,13.95589288,126.58,126.55,7.902]
[1742581095241,13.95589288,126.58,126.53,59.27880331]
[1742581095242,13.95589288,126.58,126.54,7.9023]
[1742581095418,13.92589288,126.56,126.54,7.9023]
[1742581096022,13.92589288,126.56,126.53,14.7059]
[1742581096841,13.92589288,126.57,126.53,28.63179288]
[1742581097032,0.03,126.58,126.54,13.92589288]
[1742581098848,0.03,126.58,126.55,7.902]
[1742581099047,0.03,126.58,126.56,13.92589288]
[1742581099232,81.9,126.57,126.56,13.92589288]
[1742581100347,81.9,126.57,126.55,41.58289288]
[1742581100552,81.9,126.57,126.55,7.902]
[1742581101854,13.92589288,126.56,126.54,7.9023]
[1742581102354,95.82589288,126.57,126.54,7.9023]
[1742581103151,81.9,126.57,126.54,7.9023]
[1742581103344,81.9,126.56,126.54,21.82819288]
[1742581103540,81.9,126.56,126.55,18.933972]
[1742581103745,81.9,126.56,126.55,32.85986488]
[1742581104345,81.9,126.56,126.55,18.933972]
[1742581104647,87.81635334,126.56,126.55,18.933972]
[1742581104955,87.81635334,126.56,126.55,26.835972]
[1742581105555,81.9,126.56,126.55,26.835972]
[1742581107559,81.9,126.56,126.55,40.76186488]
[1742581110153,81.93,126.58,126.55,40.76186488]
[1742581110357,81.93,126.58,126.55,26.835972]
[1742581111561,81.93,126.58,126.55,7.902]
[1742581113250,95.85589288,126.58,126.55,7.902]
[1742581115058,81.9,126.57,126.55,7.902]
[1742581116365,81.9,126.57,126.55,7.965]
[1742581116857,81.9,126.57,126.55,0.063]
[1742581120847,81.9,126.56,126.55,0.063]
[1742581123147,81.9,126.56,126.55,32.92286488]
[1742581125472,81.9,126.56,126.55,40.82486488]
[1742581134858,81.9,126.56,126.55,14.705]
[1742581135087,13.92589288,126.56,126.55,0.063]
[1742581135666,21.82719288,126.56,126.55,0.063]
[1742581136259,13.92589288,126.56,126.55,0.063]
[1742581136883,29.31633629,126.56,126.55,0.063]
[1742581137683,37.21763629,126.56,126.55,0.063]
[1742581138770,21.82719288,126.56,126.55,0.063]
[1742581140686,22.11151602,126.56,126.55,0.063]
[1742581141390,1.89532314,126.55,126.53,0.063]
[1742581141568,69.6294644,126.54,126.53,0.063]
[1742581142787,77.5320644,126.54,126.53,0.063]
[1742581144081,21.82849288,126.54,126.53,0.063]
[1742581145888,77.5320644,126.54,126.53,0.063]
[1742581147611,21.82849288,126.54,126.53,0.063]
[1742581148188,79.3988981,126.54,126.53,0.063]
[1742581148394,0.28432314,126.53,126.46,14.6475]
[1742581148594,13.92589288,126.48,126.46,14.6475]
[1742581149087,13.92589288,126.48,126.45,9.5917]
[1742581149469,1.8668337,126.53,126.45,23.51759288]
[1742581149470,13.92589288,126.5,126.45,23.51759288]
[1742581150576,13.92589288,126.5,126.45,43.28819288]
[1742581153296,81.9,126.47,126.45,43.28819288]
[1742581154316,81.9,126.47,126.46,32.85986488]
[1742581154605,54.41519288,126.53,126.46,33.14418802]
[1742581154785,40.4893,126.52,126.48,32.85986488]
[1742581154990,54.41519288,126.52,126.48,32.85986488]
[1742581155182,13.92589288,126.51,126.49,7.9057]
[1742581155497,40.4893,126.5,126.49,7.9057]
[1742581159105,13.92589288,126.52,126.49,7.9057]
[1742581160586,13.92589288,126.53,126.49,7.9057]
[1742581160893,13.92589288,126.53,126.49,21.83159288]
[1742581161395,13.92589288,126.53,126.49,41.59599288]
[1742581161600,13.92589288,126.53,126.49,27.6701]
[1742581162400,13.92589288,126.52,126.49,7.9057]
[1742581167899,13.92589288,126.53,126.49,7.9057]
[1742581168201,13.92589288,126.55,126.52,7.9038]
[1742581168383,13.92589288,126.55,126.52,14.6438]
[1742581168583,13.98889288,126.56,126.52,14.6438]
[1742581169099,81.9,126.54,126.52,14.6438]
[1742581171301,81.9,126.54,126.53,13.92589288]
[1742581171501,81.9,126.54,126.52,28.56969288]
[1742581171889,81.9,126.54,126.52,14.6438]
[1742581172586,95.82589288,126.54,126.52,14.6438]
[1742581173683,81.9,126.53,126.52,14.6438]
[1742581174303,81.9,126.53,126.52,6.74]
[1742581174503,81.9,126.52,126.49,6.74]
[1742581174720,13.92589288,126.5,126.48,14.6461]
[1742581174913,13.92589288,126.49,126.47,7.9066]
[1742581175081,81.9,126.51,126.46,14.6476]
[1742581175082,95.82589288,126.48,126.46,14.6476]
[1742581175281,81.9,126.48,126.46,14.6476]
[1742581176484,81.9,126.48,126.47,0.03]
[1742581179711,13.92589288,126.5,126.47,0.03]
[1742581182511,13.92589288,126.51,126.47,0.03]
[1742581182713,13.92589288,126.52,126.47,32.88986488]
[1742581183014,13.92589288,126.51,126.47,32.88986488]
[1742581183403,13.92589288,126.51,126.47,18.963972]
[1742581183914,13.92589288,126.51,126.48,7.9063]
[1742581188321,81.9,126.5,126.48,7.9063]
[1742581191328,95.82589288,126.5,126.47,0.03]
[1742581191539,13.92589288,126.48,126.47,0.03]
[1742581193029,21.83219288,126.48,126.47,0.03]
[1742581198327,77.5357644,126.48,126.47,0.03]
[1742581198532,21.83219288,126.48,126.47,0.03]
[1742581199312,77.5357644,126.48,126.47,0.03]
[1742581199515,77.82008754,126.48,126.47,0.03]
[1742581200522,116.51995954,126.48,126.45,0.03]
[1742581200831,14.21021602,126.46,126.45,0.03]
[1742581201523,22.11781602,126.46,126.45,0.03]
[1742581201711,13.92589288,126.46,126.45,0.03]
[1742581204142,95.82589288,126.47,126.45,0.03]
[1742581204828,81.9,126.46,126.45,0.03]
[1742581205139,81.9,126.46,126.45,32.88986488]
[1742581206436,81.9,126.46,126.45,40.79806488]
[1742581209438,81.9,126.46,126.45,0.03]
[1742581209834,95.82589288,126.46,126.45,0.03]
[1742581210141,13.92589288,126.46,126.45,0.03]
[1742581211537,13.92589288,126.47,126.45,0.03]
[1742581217939,13.98889288,126.48,126.45,0.03]
[1742581218432,0.063,126.48,126.45,13.95589288]
[1742581220441,0.063,126.48,126.46,7.9076]
[1742581220743,81.9,126.47,126.46,7.9076]
[1742581224129,81.963,126.47,126.46,7.9076]
[1742581225347,81.963,126.47,126.46,22.11781602]
[1742581225645,81.963,126.47,126.46,40.76746488]
[1742581232753,81.963,126.47,126.45,7.938]
[1742581232942,95.82589288,126.46,126.45,0.03]
[1742581233665,81.9,126.46,126.45,0.03]
[1742581234160,81.9,126.46,126.45,7.9382]
[1742581238360,0.063,126.47,126.45,7.9382]
[1742581240650,0.063,126.47,126.45,21.86409288]
[1742581241266,0.063,126.47,126.45,28.60409288]
[1742581241456,0.063,126.47,126.46,13.92589288]
[1742581243074,0.063,126.47,126.46,21.83349288]
[1742581243376,0.063,126.47,126.46,7.9076]
[1742581247280,0.063,126.47,126.46,21.83349288]
[1742581253561,0.063,126.47,126.46,7.9076]
[1742581253885,0.063,126.47,126.45,14.6779]
[1742581254180,0.063,126.47,126.45,6.77]
[1742581254483,13.92589288,126.46,126.45,0.03]
[1742581255748,21.89599288,126.47,126.45,0.03]
[1742581258477,95.82589288,126.46,126.45,0.03]
[1742581258652,7.6479,126.45,126.42,0.063]
[1742581258854,89.91378754,126.43,126.42,0.063]
[1742581259165,19.21829514,126.42,126.41,0.03]
[1742581259372,97.1702701,126.42,126.41,0.03]
[1742581260058,105.0803701,126.42,126.41,0.03]
[1742581261284,30.44282658,126.42,126.41,0.03]
[1742581261453,22.53272658,126.42,126.41,0.03]
[1742581261654,86.1463981,126.42,126.41,0.03]
[1742581261954,92.06400965,126.42,126.41,0.03]
[1742581262772,28.45033813,126.42,126.41,0.03]
[1742581262991,26.58350443,126.42,126.41,0.03]
[1742581263269,19.84350443,126.42,126.41,0.03]
[1742581268688,102.67547109,126.42,126.41,0.03]
[1742581269266,82.18432314,126.41,126.38,0.063]
[1742581269466,13.92589288,126.39,126.38,0.063]
[1742581270486,21.83789288,126.39,126.38,0.063]
[1742581270690,13.92589288,126.39,126.38,0.063]
[1742581272598,21.83789288,126.39,126.38,0.063]
[1742581274898,40.77186488,126.39,126.38,0.063]
[1742581281501,13.92589288,126.39,126.38,0.063]
[1742581281704,13.92589288,126.42,126.38,0.063]
[1742581282299,13.92589288,126.41,126.38,0.063]
[1742581282792,13.92589288,126.41,126.38,7.9756]
[1742581283193,13.92589288,126.42,126.38,21.90149288]
[1742581283394,0.063,126.41,126.38,21.90149288]
[1742581283598,81.9,126.4,126.38,21.90149288]
[1742581285598,0.063,126.41,126.38,14.5092]
[1742581285599,26.19642848,126.39,126.38,14.5092]
[1742581285777,0.063,126.41,126.38,48.21669288]
[1742581285982,0.063,126.41,126.4,13.92589288]
[1742581286797,0.063,126.41,126.4,21.83719288]
[1742581287204,81.9,126.42,126.4,22.12151602]
[1742581287404,81.9,126.42,126.41,22.25949288]
[1742581288802,81.9,126.42,126.41,30.17019288]
[1742581290497,81.9,126.42,126.41,30.45451602]
[1742581290991,81.9,126.46,126.41,50.23141602]
[1742581291306,81.9,126.45,126.43,13.92589288]
[1742581291809,81.9,126.45,126.42,13.92589288]
[1742581292717,81.9,126.45,126.43,13.92589288]
[1742581292914,81.9,126.45,126.44,7.9088]
[1742581293114,81.963,126.47,126.44,21.83469288]
[1742581293413,81.963,126.47,126.46,13.92589288]
[1742581293784,81.963,126.47,126.45,20.66589288]
[1742581294612,81.963,126.47,126.46,13.92589288]
[1742581295489,81.963,126.47,126.46,21.83349288]
[1742581304418,81.963,126.47,126.45,28.57379288]
[1742581304715,13.92589288,126.46,126.44,6.74]
[1742581304911,13.92589288,126.46,126.43,7.9092]
[1742581305115,81.9,126.45,126.43,14.6492]
[1742581306323,81.9,126.45,126.43,28.57509288]
[1742581306907,81.963,126.45,126.43,28.57509288]
[1742581308624,81.9,126.44,126.43,28.57509288]
[1742581320317,0.063,126.45,126.43,28.85941602]
[1742581320521,0.063,126.45,126.44,14.21021602]
[1742581321004,0.063,126.45,126.44,33.14418802]
[1742581321438,0.063,126.45,126.44,47.08628802]
[1742581325414,81.963,126.47,126.44,47.08628802]
[1742581325415,81.963,126.47,126.44,66.85848802]
[1742581325633,81.963,126.47,126.46,22.11781602]
[1742581325837,0.063,126.47,126.46,41.05178802]
[1742581326718,0.063,126.48,126.46,41.05178802]
[1742581326918,0.063,126.48,126.47,20.95021602]
[1742581327342,0.063,126.48,126.47,39.88418802]
[1742581327719,0.063,126.48,126.47,47.79118802]
[1742581328553,0.063,126.51,126.49,8.2627]
[1742581328719,0.063,126.54,126.52,14.21021602]
[1742581329047,0.063,126.54,126.53,6.76]
[1742581329223,0.063,126.54,126.5,6.76]
[1742581329224,13.98889288,126.54,126.5,6.76]
[1742581329426,13.92589288,126.53,126.5,6.76]
[1742581329621,6.5167,126.54,126.5,6.76]
[1742581329622,13.92589288,126.52,126.5,6.76]
[1742581329826,14.4193,126.54,126.46,7.9073]
[1742581329827,81.9,126.51,126.46,7.9073]
[1742581330128,73.36498208,126.54,126.43,228.7332]
[1742581330129,0.03,126.48,126.47,6.76]
[1742581330329,0.03,126.48,126.46,6.76]
[1742581330530,0.03,126.48,126.46,20.68589288]
[1742581330834,0.03,126.48,126.47,13.92589288]
[1742581331728,0.03,126.48,126.47,21.83289288]
[1742581333621,0.03,126.48,126.46,14.6676]
[1742581334350,0.03,126.48,126.46,28.59349288]
[1742581335279,0.03,126.48,126.46,21.83349288]
[1742581335432,0.03,126.48,126.47,6.76]
[1742581337457,0.03,126.48,126.47,14.667]
[1742581337641,0.03,126.48,126.47,28.59289288]